bitfinex-derivatives/quotes_BNBF0:USTF0_20250305
["timestamp","ask_amount","ask_price","bid_price","bid_amount"]
[1741212716821,0.9682816,596.72,595.67,0.51775637]
[1741212717023,1.22401393,596.74,595.67,0.51775637]
[1741212717221,2.19453269,596.73,595.67,0.51775637]
[1741212717424,0.97051876,596.72,595.67,0.51775637]
[1741212717620,0.97051876,596.71,595.67,0.51775637]
[1741212717822,2.19453269,596.7,595.67,0.51775637]
[1741212718023,0.97051876,596.69,595.67,0.51775637]
[1741212718219,1.22401393,596.68,595.67,0.51775637]
[1741212718526,2.19453269,596.68,595.67,0.51775637]
[1741212718725,2.19465249,596.67,595.67,0.51775637]
[1741212718920,0.97063856,596.66,595.67,0.51775637]
[1741212719124,1.22401393,596.65,595.67,0.51775637]
[1741212719324,2.19469643,596.65,595.67,0.51775637]
[1741212719521,0.9706825,596.64,595.67,0.51775637]
[1741212719725,1.22401393,596.63,595.67,0.51775637]
[1741212720624,1.22401393,596.62,595.67,0.51775637]
[1741212721528,1.22401393,596.61,595.67,0.51775637]
[1741212721823,1.22401393,596.6,595.67,0.51775637]
[1741212722529,1.504,596.59,595.67,0.51775637]
[1741212723025,0.9706825,596.58,595.67,0.51775637]
[1741212723227,0.9706825,596.57,595.67,0.51775637]
[1741212723428,0.9706825,596.56,595.67,0.51775637]
[1741212723624,0.9706825,596.57,595.67,0.51775637]
[1741212723828,2.77710594,596.58,595.67,0.51775637]
[1741212723829,0.9706825,596.56,595.67,0.51775637]
[1741212724029,1.22401393,596.56,595.67,0.51775637]
[1741212724829,1.22401393,596.55,595.67,0.51775637]
[1741212725224,2.19437778,596.55,595.67,0.51775637]
[1741212725427,0.97036385,596.54,595.67,0.51775637]
[1741212725628,1.22401393,596.54,595.67,0.51775637]
[1741212726027,1.22401393,596.57,595.67,0.51775637]
[1741212726530,1.22401393,596.56,595.67,0.51775637]
[1741212727131,1.22401393,596.57,595.67,0.51775637]
[1741212728228,2.19384827,596.58,595.67,0.51775637]
[1741212731726,1.22401393,596.58,595.67,0.51775637]
[1741212731930,2.1928152,596.58,595.67,0.51775637]
[1741212732228,1.22401393,596.58,595.67,0.51775637]
[1741212732427,2.1928152,596.58,595.67,0.51775637]
[1741212732632,1.22401393,596.58,595.67,0.51775637]
[1741212732827,1.504,596.59,595.67,0.51775637]
[1741212770570,0.96752509,596.9,595.67,0.51775637]
[1741212770768,0.96752509,596.91,595.67,0.51775637]
[1741212771370,0.29181411,596.98,595.67,0.51775637]
[1741212773470,1.22451886,597.02,595.67,0.51775637]
[1741212773666,1.219,596.97,595.67,0.51775637]
[1741212776273,1.219,596.97,595.82,2.54502092]
[1741212776468,1.219,596.97,595.84,0.33566058]
[1741212779671,1.219,596.97,595.85,0.182]
[1741212779874,1.219,596.97,595.87,0.33564368]
[1741212785982,2.18497277,596.97,595.87,0.33564368]
[1741212786381,0.96643851,596.96,595.87,0.33564368]
[1741212787174,1.51076151,596.97,595.87,0.33564368]
[1741212787675,2.47749159,596.97,595.87,0.33564368]
[1741212788381,1.22164214,596.96,595.87,0.33564368]
[1741212788582,2.18837222,596.96,595.87,0.33564368]
[1741212788776,2.48013985,596.96,595.87,0.33564368]
[1741212788976,1.22164214,596.95,595.87,0.33564368]
[1741212789882,1.22164214,596.94,595.87,0.33564368]
[1741212790276,1.22164214,596.93,595.87,0.33564368]
[1741212790774,1.22164214,596.92,595.87,0.33564368]
[1741212791182,1.22164214,596.91,595.87,0.33564368]
[1741212791880,1.22164214,596.9,595.87,0.33564368]
[1741212792277,2.18837222,596.9,595.87,0.33564368]
[1741212792475,0.96673008,596.89,595.87,0.33564368]
[1741212792779,2.18837222,596.89,595.87,0.33564368]
[1741212792983,0.96673008,596.88,595.87,0.33564368]
[1741212793183,1.22164214,596.88,595.87,0.33564368]
[1741212793776,1.22164214,596.87,595.87,0.33564368]
[1741212794380,0.96673008,596.86,595.87,0.33564368]
[1741212794677,1.22164214,596.85,595.87,0.33564368]
[1741212794882,2.18837222,596.85,595.87,0.33564368]
[1741212795082,0.96673008,596.84,595.87,0.33564368]
[1741212795482,1.22164214,596.83,595.87,0.33564368]
[1741212795682,2.18837222,596.83,595.87,0.33564368]
[1741212795983,2.18837222,596.82,595.87,0.33564368]
[1741212796184,0.96673008,596.81,595.87,0.33564368]
[1741212796681,1.066,596.8,595.87,0.33564368]
[1741212796883,2.03273008,596.8,595.87,0.33564368]
[1741212797486,1.066,596.8,595.87,0.33564368]
[1741212805394,2.29108389,596.8,595.87,0.33564368]
[1741212805585,0.96878533,596.79,595.87,0.33564368]
[1741212806184,1.066,596.8,595.87,0.33564368]
[1741212807489,1.22508389,596.79,595.87,0.33564368]
[1741212807687,2.19386922,596.79,595.87,0.33564368]
[1741212808085,0.96878533,596.79,595.88,0.182]
[1741212808390,1.066,596.8,595.88,0.182]
[1741212808590,1.22508389,596.79,595.88,0.182]
[1741212808785,2.19386922,596.79,595.88,0.182]
[1741212808986,0.96878533,596.78,595.88,0.182]
[1741212809288,2.19386922,596.79,595.88,0.182]
[1741212811593,1.22508389,596.78,595.88,0.182]
[1741212812694,1.22508389,596.78,595.89,0.33563241]
[1741212813487,2.19386922,596.79,595.89,0.33563241]
[1741212814092,0.96878533,596.79,595.89,0.33563241]
[1741212814288,1.066,596.8,595.89,0.33563241]
[1741212814896,2.51985881,596.87,595.89,0.33563241]
[1741212814897,2.51985881,596.86,595.89,0.33563241]
[1741212815094,1.22508389,596.85,595.89,0.33563241]
[1741212815289,2.19426035,596.85,595.89,0.33563241]
[1741212815495,2.19426035,596.84,595.89,0.33563241]
[1741212815691,0.96917646,596.83,595.89,0.33563241]
[1741212816194,1.22508389,596.82,595.89,0.33563241]
[1741212816596,1.22508389,596.81,595.89,0.33563241]
[1741212816995,2.19426035,596.89,595.89,0.33563241]
[1741212817196,0.96917646,596.88,595.89,0.33563241]
[1741212817397,0.96917646,596.87,595.89,0.33563241]
[1741212817594,0.96917646,596.86,595.89,0.33563241]
[1741212817790,1.22508389,596.89,595.89,0.33563241]
[1741212817791,0.96917646,596.88,595.89,0.33563241]
[1741212817994,2.71008389,596.85,595.89,0.33563241]
[1741212818295,2.19426035,596.84,595.89,0.33563241]
[1741212818491,0.96917646,596.83,595.89,0.33563241]
[1741212818691,1.22508389,596.82,595.89,0.33563241]
[1741212818893,2.19426035,596.83,595.89,0.33563241]
[1741212819091,0.96917646,596.82,595.89,0.33563241]
[1741212819596,2.19426035,596.84,595.89,0.33563241]
[1741212820294,0.96915155,596.83,595.89,0.33563241]
[1741212820500,2.19423544,596.84,595.89,0.33563241]
[1741212820905,0.9691496,596.83,595.89,0.33563241]
[1741212821104,2.19423349,596.84,595.89,0.33563241]
[1741212824410,0.96916983,596.83,595.89,0.33563241]
[1741212824602,2.19425372,596.84,595.89,0.33563241]
[1741212826905,1.22508389,596.83,595.89,0.33563241]
[1741212827304,1.22508389,596.82,595.89,0.33563241]
[1741212827703,1.22508389,596.81,595.89,0.33563241]
[1741212828507,1.22508389,596.8,595.89,0.33563241]
[1741212829213,1.22508389,596.82,595.89,0.33563241]
[1741212829815,1.22508389,596.81,595.89,0.33563241]
[1741212830215,1.22508389,596.8,595.89,0.33563241]
[1741212830616,1.22508389,596.83,595.89,0.33563241]
[1741212831110,1.22508389,596.82,595.89,0.33563241]
[1741212831815,1.22508389,596.81,595.89,0.33563241]
[1741212832618,1.22508389,596.8,595.89,0.33563241]
[1741212833219,1.22508389,596.79,595.89,0.33563241]
[1741212833620,1.22508389,596.83,595.89,0.33563241]
[1741212834520,1.22508389,596.82,595.89,0.33563241]
[1741212835121,1.22508389,596.83,595.89,0.33563241]
[1741212835715,1.22508389,596.82,595.89,0.33563241]
[1741212836316,1.22508389,596.82,595.9,0.182]
[1741212836522,1.22508389,596.81,595.9,0.182]
[1741212837323,1.22508389,596.8,595.9,0.182]
[1741212838119,1.22508389,596.83,595.9,0.182]
[1741212838322,2.19421371,596.83,595.9,0.182]
[1741212838518,2.19421371,596.82,595.9,0.182]
[1741212838719,0.96912982,596.81,595.9,0.182]
[1741212839227,1.22508389,596.8,595.9,0.182]
[1741212839420,2.19421371,596.8,595.9,0.182]
[1741212839619,0.96912982,596.79,595.9,0.182]
[1741212840025,1.22508389,596.79,595.9,0.182]
[1741212840220,1.22508389,596.79,595.91,0.33562115]
[1741212840820,1.485,596.85,595.91,0.33562115]
[1741212846026,1.485,596.85,595.94,2.54502092]
[1741212846225,1.485,596.85,595.96,0.33559299]
[1741212858137,3.00657509,597.55,595.96,0.33559299]
[1741212858337,3.14517786,597.54,595.96,0.33559299]
[1741212858537,3.14518346,597.53,595.96,0.33559299]
[1741212858733,1.6050531,597.52,595.96,0.33559299]
[1741212858939,0.64247374,597.51,595.96,0.33559299]
[1741212859235,0.30775131,597.5,595.96,0.33559299]
[1741212859435,0.33472243,597.51,595.97,0.182]
[1741212859634,0.33472243,597.51,595.99,0.3355761]
[1741212860036,0.30772224,597.5,595.99,0.3355761]
[1741212861340,1.323,597.49,595.99,0.3355761]
[1741212861838,0.29160626,597.48,595.99,0.3355761]
[1741212863336,1.2535458,597.48,595.99,0.3355761]
[1741212863643,2.16503209,597.48,595.99,0.3355761]
[1741212863843,0.96163278,597.47,595.99,0.3355761]
[1741212864040,0.29155618,597.47,595.99,0.3355761]
[1741212864238,2.79180142,597.47,595.99,0.3355761]
[1741212864440,0.96163278,597.46,595.99,0.3355761]
[1741212864639,2.50024524,597.46,595.99,0.3355761]
[1741212865040,1.20339931,597.45,595.99,0.3355761]
[1741212865244,3.70364455,597.45,595.99,0.3355761]
[1741212865542,0.96163278,597.44,595.99,0.3355761]
[1741212865738,0.29155618,597.47,595.99,0.3355761]
[1741212866645,2.16503209,597.48,595.99,0.3355761]
[1741212866946,0.29155618,597.46,595.99,0.3355761]
[1741212867644,1.49495549,597.46,595.99,0.3355761]
[1741212868138,0.29155618,597.46,595.99,0.3355761]
[1741212869343,0.30772211,597.45,595.99,0.3355761]
[1741212869744,1.20339931,597.48,595.99,0.3355761]
[1741212870247,1.323,597.49,595.99,0.3355761]
[1741212882654,1.323,597.49,596.0,0.182]
[1741212891367,1.323,597.49,596.02,0.3355592]
[1741212899774,1.323,597.49,596.13,2.54502092]
[1741212900173,1.323,597.49,596.15,0.33548603]
[1741212903077,1.323,597.49,596.15,2.88050695]
[1741212904175,1.323,597.49,596.15,0.33548603]
[1741212905080,1.323,597.49,596.15,0.51748603]
[1741212905276,0.2914878,597.63,596.15,0.51748603]
[1741212906880,0.2914878,597.63,596.3,2.54502092]
[1741212908375,0.96580864,597.62,596.3,2.54502092]
[1741212908576,1.19699073,597.72,596.3,2.54502092]
[1741212908577,1.276,597.5,596.3,2.54502092]
[1741212908775,1.276,597.5,596.39,2.54502092]
[1741212909781,0.29150367,597.49,596.39,2.54502092]
[1741212910481,0.29150367,597.49,596.31,0.33539601]
[1741212910977,0.30773689,597.48,596.31,0.33539601]
[1741212911181,0.29150367,597.49,596.31,0.33539601]
[1741212911481,1.276,597.5,596.31,0.33539601]
[1741212912784,0.29151344,597.49,596.31,0.33539601]
[1741212913378,1.25795133,597.49,596.31,0.33539601]
[1741212913583,2.45494206,597.49,596.31,0.33539601]
[1741212914583,2.16342862,597.49,596.31,0.33539601]
[1741212915583,1.19699073,597.49,596.31,0.33539601]
[1741212915782,1.276,597.5,596.31,0.33539601]
[1741212919383,2.24285463,597.5,596.31,0.33539601]
[1741212919886,1.19699073,597.49,596.31,0.33539601]
[1741212920086,2.16384536,597.49,596.31,0.33539601]
[1741212928091,2.16384536,597.49,596.31,0.51739601]
[1741212930894,0.96685463,597.48,596.31,0.51739601]
[1741212931094,2.74501054,597.49,596.31,0.51739601]
[1741212931095,0.96685463,597.47,596.31,0.51739601]
[1741212931294,0.96685463,597.46,596.31,0.51739601]
[1741212931490,0.96685463,597.47,596.31,0.51739601]
[1741212931693,0.96685463,597.46,596.31,0.51739601]
[1741212932290,0.96685463,597.47,596.31,0.51739601]
[1741212932595,0.96685463,597.46,596.31,0.51739601]
[1741212932792,0.96685463,597.45,596.31,0.51739601]
[1741212933098,1.19699073,597.45,596.31,0.51739601]
[1741212933494,1.276,597.5,596.31,0.51739601]
[1741212935690,1.276,597.5,596.31,3.06241693]
[1741212936897,1.276,597.5,596.31,0.51739601]
[1741212938198,1.276,597.5,596.35,2.54502092]
[1741212938400,1.276,597.5,596.37,0.33536227]
[1741212948409,1.276,597.5,596.38,0.182]
[1741212948608,1.276,597.5,596.4,0.3353454]
[1741212961226,1.276,597.5,596.42,2.54502092]
[1741212961428,1.276,597.5,596.44,0.33532291]
[1741212962827,1.276,597.5,596.44,2.88034383]
[1741212964327,1.276,597.5,596.47,2.54502092]
[1741212964628,2.16998059,597.83,596.49,0.3352948]
[1741212964822,0.96536661,597.82,596.49,0.3352948]
[1741212965024,1.20461398,597.83,596.49,0.3352948]
[1741212965224,0.29139749,597.85,596.49,0.3352948]
[1741212965726,0.99818055,598.02,596.49,0.3352948]
[1741212965926,0.3075004,598.01,596.49,0.3352948]
[1741212966124,0.33443697,598.02,596.49,0.3352948]
[1741212966322,0.33443697,598.02,596.51,2.54502092]
[1741212966526,0.33443697,598.02,596.53,0.33527232]
[1741212966826,0.29129139,598.01,596.53,0.33527232]
[1741212967827,1.209,598.0,596.53,0.33527232]
[1741212968929,0.29130846,597.99,596.53,0.33527232]
[1741212969526,2.16998059,597.98,596.53,0.33527232]
[1741212969726,0.96536661,597.97,596.53,0.33527232]
[1741212969933,1.20461398,597.96,596.53,0.33527232]
[1741212970123,2.16998059,597.96,596.53,0.33527232]
[1741212970328,2.16998059,597.95,596.53,0.33527232]
[1741212970530,0.96536661,597.94,596.53,0.33527232]
[1741212970824,1.20461398,597.95,596.53,0.33527232]
[1741212971027,1.20461398,597.93,596.53,0.33527232]
[1741212971630,0.96536661,597.95,596.53,0.33527232]
[1741212972425,1.20461398,597.96,596.53,0.33527232]
[1741212972824,0.29138285,597.94,596.53,0.33527232]
[1741212973624,0.29138285,597.94,596.53,0.51727232]
[1741212974731,1.20461398,597.93,596.53,0.51727232]
[1741212975530,1.20461398,597.92,596.53,0.51727232]
[1741212975832,2.17026562,597.92,596.53,0.51727232]
[1741212976135,0.96565164,597.91,596.53,0.51727232]
[1741212976625,1.20461398,597.93,596.53,0.51727232]
[1741212977025,1.20461398,597.92,596.53,0.51727232]
[1741212977429,3.71530825,597.93,596.53,0.51727232]
[1741212977631,2.51069427,597.92,596.53,0.51727232]
[1741212977832,0.96565164,597.92,596.53,0.51727232]
[1741212978031,1.20461398,597.91,596.53,0.51727232]
[1741212978429,3.71530825,597.96,596.53,0.51727232]
[1741212978731,2.51069427,597.95,596.53,0.51727232]
[1741212979033,0.96565164,597.94,596.53,0.51727232]
[1741212979635,1.20461398,597.93,596.53,0.51727232]
[1741212979935,1.20461398,597.92,596.53,0.51727232]
[1741212980329,2.17026562,597.97,596.53,0.51727232]
[1741212980532,0.96565164,597.96,596.53,0.51727232]
[1741212980728,2.17026562,597.95,596.53,0.51727232]
[1741212981033,0.96565164,597.94,596.53,0.51727232]
[1741212981331,2.17026562,597.93,596.53,0.51727232]
[1741212981634,0.96565164,597.92,596.53,0.51727232]
[1741212982034,2.17026562,597.92,596.53,0.51727232]
[1741212982234,0.96565164,597.91,596.53,0.51727232]
[1741212982530,1.20461398,597.91,596.53,0.51727232]
[1741212982934,3.01269128,597.96,596.53,0.51727232]
[1741212983130,2.51069427,597.95,596.53,0.51727232]
[1741212983331,2.17026562,597.94,596.53,0.51727232]
[1741212983532,0.96565164,597.93,596.53,0.51727232]
[1741212983733,0.96565164,597.92,596.53,0.51727232]
[1741212983934,0.96565164,597.91,596.53,0.51727232]
[1741212984233,2.17026562,597.9,596.53,0.51727232]
[1741212984429,0.96565164,597.89,596.53,0.51727232]
[1741212984634,0.96565164,597.88,596.53,0.51727232]
[1741212984937,1.20461398,597.88,596.53,0.51727232]
[1741212985131,2.17026562,597.88,596.53,0.51727232]
[1741212985334,0.96565164,597.87,596.53,0.51727232]
[1741212985635,1.20461398,597.86,596.53,0.51727232]
[1741212985933,1.20461398,597.86,596.62,2.54502092]
[1741212986129,1.20461398,597.86,596.64,0.33521051]
[1741212986838,2.04703964,597.9,596.64,0.33521051]
[1741212986839,1.20461398,597.85,596.64,0.33521051]
[1741212987240,2.17026562,597.85,596.64,0.33521051]
[1741212987538,2.17026562,597.84,596.64,0.33521051]
[1741212987836,0.96565164,597.83,596.64,0.33521051]
[1741212988032,3.71530825,597.88,596.64,0.33521051]
[1741212988237,2.51069427,597.87,596.64,0.33521051]
[1741212988435,0.96565164,597.86,596.64,0.33521051]
[1741212988737,2.17026562,597.85,596.64,0.33521051]
[1741212988942,0.96565164,597.84,596.64,0.33521051]
[1741212989336,0.96565164,597.83,596.64,0.33521051]
[1741212989542,0.96565164,597.82,596.64,0.33521051]
[1741212990338,2.17026562,597.81,596.64,0.33521051]
[1741212990535,0.96565164,597.8,596.64,0.33521051]
[1741212991136,1.20461398,597.79,596.64,0.33521051]
[1741212991435,0.96565164,597.78,596.64,0.33521051]
[1741212991836,1.20461398,597.77,596.64,0.33521051]
[1741212992241,0.96565164,597.76,596.64,0.33521051]
[1741212992439,0.96565164,597.75,596.64,0.33521051]
[1741212992635,0.96565164,597.74,596.64,0.33521051]
[1741212992840,0.96565164,597.75,596.64,0.33521051]
[1741212993042,0.96565164,597.74,596.64,0.33521051]
[1741212993235,0.96565164,597.75,596.64,0.33521051]
[1741212993439,1.20461398,597.73,596.64,0.33521051]
[1741212993641,2.17026562,597.73,596.64,0.33521051]
[1741212993942,0.96565164,597.72,596.64,0.33521051]
[1741212994139,0.96565164,597.81,596.64,0.33521051]
[1741212994343,0.96565164,597.8,596.64,0.33521051]
[1741212994538,0.96565164,597.79,596.64,0.33521051]
[1741212994744,0.96565164,597.78,596.64,0.33521051]
[1741212994945,0.96565164,597.77,596.64,0.33521051]
[1741212995141,0.96565164,597.76,596.64,0.33521051]
[1741212995346,0.96565164,597.75,596.64,0.33521051]
[1741212995546,0.96565164,597.74,596.64,0.33521051]
[1741212995748,2.17026562,597.75,596.64,0.33521051]
[1741212995941,0.96565164,597.74,596.64,0.33521051]
[1741212996541,2.17026562,597.8,596.64,0.33521051]
[1741212996847,0.96565164,597.79,596.64,0.33521051]
[1741212997047,0.96565164,597.78,596.64,0.33521051]
[1741212997248,0.96565164,597.77,596.66,2.54502092]
[1741212997449,2.17026562,597.76,596.68,0.33518804]
[1741212997648,0.96565164,597.75,596.68,0.33518804]
[1741212997849,2.17026562,597.74,596.68,0.33518804]
[1741212998049,0.96565164,597.73,596.68,0.33518804]
[1741212998245,2.51069427,597.8,596.68,0.33518804]
[1741212998446,0.96565164,597.79,596.68,0.33518804]
[1741212998649,0.96565164,597.78,596.68,0.33518804]
[1741212998845,1.20461398,597.77,596.68,0.33518804]
[1741212999646,3.01268925,597.85,596.68,0.33518804]
[1741212999842,2.51069427,597.84,596.68,0.33518804]
[1741213000048,0.96565164,597.83,596.68,0.33518804]
[1741213000248,2.17026562,597.82,596.68,0.33518804]
[1741213000448,0.96565164,597.81,596.68,0.33518804]
[1741213000647,0.96565164,597.8,596.68,0.33518804]
[1741213000849,2.17026562,597.79,596.68,0.33518804]
[1741213001050,0.96565164,597.78,596.68,0.33518804]
[1741213001247,2.17026562,597.78,596.68,0.33518804]
[1741213001447,0.96565164,597.77,596.68,0.33518804]
[1741213002148,0.96565164,597.85,596.68,0.33518804]
[1741213002349,0.96565164,597.84,596.68,0.33518804]
[1741213002549,0.96565164,597.83,596.68,0.33518804]
[1741213002750,0.96565164,597.82,596.68,0.33518804]
[1741213002951,0.96565164,597.81,596.68,0.51718804]
[1741213003146,2.17026562,597.8,596.68,0.51718804]
[1741213003352,0.96565164,597.79,596.68,0.51718804]
[1741213003547,0.96565164,597.78,596.68,0.51718804]
[1741213003744,1.20461398,597.78,596.68,0.51718804]
[1741213003947,2.17026562,597.78,596.68,0.51718804]
[1741213004146,2.17026562,597.77,596.68,0.51718804]
[1741213004452,0.96565164,597.76,596.68,0.51718804]
[1741213004652,1.20461398,597.77,596.68,0.51718804]
[1741213005047,0.96565164,597.88,596.68,0.51718804]
[1741213005350,2.17026562,597.87,596.68,0.51718804]
[1741213005551,0.96565164,597.86,596.68,0.51718804]
[1741213005752,0.96565164,597.85,596.68,0.51718804]
[1741213005945,0.96565164,597.84,596.68,0.51718804]
[1741213006148,0.96565164,597.83,596.68,0.51718804]
[1741213006349,0.96565164,597.82,596.68,0.51718804]
[1741213006550,0.96565164,597.81,596.68,0.51718804]
[1741213006753,0.96565164,597.8,596.68,0.51718804]
[1741213007051,0.96565164,597.79,596.68,0.51718804]
[1741213007351,0.96565164,597.78,596.68,0.51718804]
[1741213007552,0.96565164,597.77,596.68,0.51718804]
[1741213007745,0.96565164,597.76,596.68,0.51718804]
[1741213007949,1.20461398,597.77,596.68,0.51718804]
[1741213007950,0.96565164,597.75,596.68,0.51718804]
[1741213008151,2.17026562,597.74,596.68,0.51718804]
[1741213008353,0.96565164,597.73,596.68,0.51718804]
[1741213008546,0.96565164,597.72,596.68,0.51718804]
[1741213008750,1.20461398,597.72,596.68,0.51718804]
[1741213008947,2.17026562,597.72,596.68,0.51718804]
[1741213009149,2.17026562,597.71,596.68,0.51718804]
[1741213009345,0.96565164,597.7,596.68,0.51718804]
[1741213009952,0.96565164,597.86,596.68,0.51718804]
[1741213010151,0.96565164,597.85,596.68,0.51718804]
[1741213010349,0.96565164,597.84,596.68,0.51718804]
[1741213010550,0.96565164,597.83,596.68,0.51718804]
[1741213010751,0.96565164,597.82,596.68,0.51718804]
[1741213010953,0.96565164,597.81,596.68,0.51718804]
[1741213011252,0.96565164,597.8,596.68,0.51718804]
[1741213011451,0.96945787,597.79,596.68,0.51718804]
[1741213011651,2.17407185,597.78,596.68,0.51718804]
[1741213011846,0.96945787,597.77,596.68,0.51718804]
[1741213012047,1.20461398,597.78,596.68,0.51718804]
[1741213012048,0.96945787,597.76,596.68,0.51718804]
[1741213012247,0.96945787,597.75,596.68,0.51718804]
[1741213012447,0.96945787,597.74,596.68,0.51718804]
[1741213012653,0.96945787,597.73,596.68,0.51718804]
[1741213012955,0.96945787,597.72,596.68,0.51718804]
[1741213013153,2.17407185,597.71,596.68,0.51718804]
[1741213013452,0.96945787,597.7,596.68,0.51718804]
[1741213013649,1.20461398,597.7,596.68,0.51718804]
[1741213014248,0.96945787,597.73,596.68,0.51718804]
[1741213014449,1.20461398,597.74,596.68,0.51718804]
[1741213014844,1.20461398,597.73,596.68,0.51718804]
[1741213015053,1.20461398,597.73,596.68,3.06220896]
[1741213015651,1.081,597.92,596.68,3.06220896]
[1741213015652,1.20461398,597.72,596.68,3.06220896]
[1741213016353,0.96945787,597.71,596.68,3.06220896]
[1741213016547,0.96945787,597.7,596.68,3.06220896]
[1741213016853,2.17407185,597.69,596.68,3.06220896]
[1741213017053,0.96945787,597.68,596.68,3.06220896]
[1741213017248,0.96945787,597.67,596.68,3.06220896]
[1741213017453,0.96945787,597.66,596.68,3.06220896]
[1741213017653,1.20461398,597.65,596.68,3.06220896]
[1741213018454,1.20461398,597.64,596.68,3.06220896]
[1741213018755,1.20461398,597.64,596.68,0.51718804]
[1741213019054,1.20461398,597.63,596.68,0.51718804]
[1741213019653,0.96945787,597.62,596.68,0.51718804]
[1741213019850,0.96945787,597.61,596.68,0.51718804]
[1741213020055,0.96945787,597.6,596.68,0.51718804]
[1741213020255,0.96945787,597.59,596.68,0.51718804]
[1741213020453,0.96945787,597.58,596.68,0.51718804]
[1741213020650,0.96945787,597.57,596.68,0.51718804]
[1741213020957,0.96945787,597.56,596.68,0.51718804]
[1741213021355,0.96945787,597.55,596.68,0.51718804]
[1741213021556,0.96945787,597.54,596.68,0.51718804]
[1741213021750,0.96945787,597.53,596.68,0.51718804]
[1741213022055,0.96945787,597.52,596.68,0.51718804]
[1741213022256,0.96945787,597.53,596.68,0.51718804]
[1741213022556,1.20461398,597.52,596.68,0.51718804]
[1741213023357,1.20461398,597.51,596.68,0.51718804]
[1741213023953,0.96945787,597.58,596.68,0.51718804]
[1741213024156,0.96945787,597.57,596.68,0.51718804]
[1741213024357,0.96945787,597.56,596.68,0.51718804]
[1741213024558,0.96945787,597.55,596.68,0.51718804]
[1741213024755,0.96945787,597.54,596.68,0.51718804]
[1741213024954,0.96945787,597.53,596.68,0.51718804]
[1741213025257,0.96945787,597.54,596.68,0.51718804]
[1741213025457,1.20461398,597.52,596.68,0.51718804]
[1741213025757,2.17407185,597.51,596.68,0.51718804]
[1741213025954,0.96945787,597.5,596.68,0.51718804]
[1741213026752,0.96945787,597.56,596.68,0.51718804]
[1741213026955,0.96945787,597.55,596.68,0.51718804]
[1741213027260,0.96945787,597.54,596.68,0.51718804]
[1741213027458,0.96945787,597.53,596.68,0.51718804]
[1741213027754,2.17407185,597.52,596.68,0.51718804]
[1741213028055,0.96945787,597.51,596.68,0.51718804]
[1741213028255,1.20461398,597.5,596.68,0.51718804]
[1741213028853,0.29146217,597.49,596.68,0.51718804]
[1741213031259,0.29146217,597.49,596.68,0.182]
[1741213031662,0.96945787,597.56,596.68,0.182]
[1741213031858,0.29154885,597.48,596.68,0.182]
[1741213032064,0.96945787,597.57,596.68,0.182]
[1741213032359,0.30772848,597.56,596.68,0.182]
[1741213032759,1.27718635,597.58,596.68,0.182]
[1741213032960,0.29154885,597.55,596.68,0.182]
[1741213034661,0.96458235,597.59,596.68,0.182]
[1741213034963,0.3077285,597.58,596.68,0.182]
[1741213035467,0.3077285,597.57,596.68,0.182]
[1741213035670,2.47692483,597.64,596.68,0.182]
[1741213035971,0.29158794,597.57,596.68,0.182]
[1741213036165,0.30772586,597.56,596.68,0.182]
[1741213036364,2.16919633,597.62,596.68,0.182]
[1741213036670,1.27230655,597.61,596.68,0.182]
[1741213036866,1.27230655,597.6,596.68,0.182]
[1741213037068,1.27230655,597.59,596.68,0.182]
[1741213037268,1.27230655,597.58,596.68,0.182]
[1741213037468,0.3077242,597.57,596.68,0.182]
[1741213037670,0.3077242,597.56,596.68,0.182]
[1741213037974,1.25617884,597.58,596.68,0.182]
[1741213038273,0.30771834,597.57,596.68,0.182]
[1741213038473,0.29159649,597.58,596.68,0.182]
[1741213040573,0.96458235,597.6,596.68,0.182]
[1741213040767,0.96223307,597.6,596.68,0.182]
[1741213041270,1.20461398,597.61,596.68,0.182]
[1741213041874,0.29153176,597.6,596.68,0.182]
[1741213042971,0.30768543,597.59,596.68,0.182]
[1741213043777,0.30768543,597.6,596.68,0.182]
[1741213043979,0.30768543,597.59,596.68,0.182]
[1741213044175,0.30768543,597.58,596.68,0.182]
[1741213044374,0.30768543,597.61,596.68,0.182]
[1741213044582,0.30768543,597.6,596.68,0.182]
[1741213044779,0.29156351,597.6,596.68,0.182]
[1741213044975,0.30768543,597.59,596.68,0.182]
[1741213045180,1.29691629,597.58,596.68,0.182]
[1741213045381,0.64237425,597.57,596.68,0.182]
[1741213045681,0.64237985,597.56,596.68,0.182]
[1741213045881,0.64238545,597.55,596.68,0.182]
[1741213046082,0.30768543,597.54,596.68,0.182]
[1741213047778,0.29160138,597.53,596.68,0.182]
[1741213047978,0.30768543,597.52,596.68,0.182]
[1741213049185,3.31552937,597.52,596.68,0.182]
[1741213049485,0.30768543,597.51,596.68,0.182]
[1741213049881,0.30768543,597.5,596.68,0.182]
[1741213052781,0.2915916,597.49,596.68,0.182]